bitfinex-derivatives/quotes_SOLF0:USTF0_20250127
["timestamp","ask_amount","ask_price","bid_price","bid_amount"]
[1737944112409,0.03221408,236.17,235.94,26.90488923]
[1737944112809,2.203,236.2,235.94,26.90488923]
[1737944113010,2.203,236.2,235.99,26.90488923]
[1737944113206,4.2377,236.11,235.99,26.90488923]
[1737944113415,26.90488923,236.17,235.94,26.90488923]
[1737944113613,0.03040263,236.07,236.03,0.03051547]
[1737944114008,26.90488923,236.17,236.03,0.03051547]
[1737944114214,4.26515278,236.07,236.03,0.03051547]
[1737944114515,0.0325148,236.12,236.03,0.03051547]
[1737944114717,4.2388,236.04,236.03,0.03051547]
[1737944114910,26.90488923,236.09,235.9,79.34]
[1737944115104,22.64938249,236.05,235.8,26.90488923]
[1737944115415,2.2665,236.08,235.82,26.90488923]
[1737944115714,26.90488923,236.04,235.82,26.90488923]
[1737944115909,4.24,235.98,235.82,26.90488923]
[1737944116110,0.02739782,235.95,235.91,0.02670485]
[1737944116413,4.24,235.98,235.91,0.02670485]
[1737944116611,0.02929663,235.95,235.91,0.02670485]
[1737944116810,0.02929663,235.95,235.86,31.14688923]
[1737944117005,0.02929663,235.95,235.91,0.03200115]
[1737944118007,4.2388,236.05,235.91,0.03200115]
[1737944118211,2.2665,236.08,235.93,26.90488923]
[1737944118409,26.90488923,236.35,236.07,26.90488923]
[1737944118614,31.83938923,236.39,236.15,26.90488923]
[1737944119218,4.2346,236.28,236.15,31.14168923]
[1737944119417,0.02837984,236.29,236.25,0.02700113]
[1737944119712,0.03147935,236.29,236.25,0.02782523]
[1737944122217,4.26597935,236.29,236.25,0.02782523]
[1737944122716,0.03147935,236.29,236.25,0.02782523]
[1737944123518,4.2348,236.27,236.25,0.02782523]
[1737944125213,0.03147935,236.29,236.25,0.02782523]
[1737944125420,2.225,236.38,236.28,26.90488923]
[1737944125620,2.6672,236.39,236.33,26.90488923]
[1737944126309,4.2332,236.36,236.33,26.90488923]
[1737944126716,0.03007497,236.37,236.33,26.90488923]
[1737944126912,4.2333,236.35,236.33,26.90488923]
[1737944127315,0.03007497,236.37,236.33,26.90488923]
[1737944129421,0.00115632,236.37,236.33,26.90488923]
[1737944130020,2.2214,236.49,236.33,26.90488923]
[1737944131128,0.02851791,236.43,236.39,0.02778852]
[1737944132322,4.2324,236.4,236.39,0.02778852]
[1737944132926,0.02851791,236.43,236.39,0.02778852]
[1737944133130,0.02851791,236.43,236.41,26.90488923]
[1737944134934,0.10339946,236.5,236.41,26.90488923]
[1737944135135,2.3817,236.51,236.39,0.02778852]
[1737944135533,4.2324,236.4,236.39,0.02778852]
[1737944135932,4.2049815,236.4,236.39,0.02778852]
[1737944136235,0.03188106,236.42,236.26,79.22]
[1737944136434,0.03188106,236.42,236.25,26.90488923]
[1737944136634,4.2349,236.26,236.21,26.90488923]
[1737944136837,2.3504,236.43,236.21,26.90488923]
[1737944137031,26.90488923,236.4,236.21,26.90488923]
[1737944137232,26.90488923,236.4,236.11,4.22]
[1737944137233,4.2354,236.24,236.17,26.90488923]
[1737944137735,26.90488923,236.4,236.28,0.03042648]
[1737944137937,0.02770379,236.23,236.17,26.90488923]
[1737944138138,2.3504,236.43,236.21,26.90488923]
[1737944138334,4.2326,236.4,236.3,26.90488923]
[1737944138535,2.742,236.42,236.3,26.90488923]
[1737944139438,0.03176372,236.38,236.34,26.9325716]
[1737944139638,31.76478923,236.56,236.34,26.90488923]
[1737944139838,31.76478923,236.56,236.38,26.90488923]
[1737944140041,0.02715077,236.45,236.34,26.90488923]
[1737944140244,0.02715077,236.45,236.42,0.02952612]
[1737944140549,31.76478923,236.56,236.3,26.90488923]
[1737944140837,0.02735074,236.46,236.41,0.02911496]
[1737944141243,0.02735074,236.46,236.3,26.90488923]
[1737944141439,26.90488923,236.48,236.26,26.90488923]
[1737944141836,4.2337,236.33,236.26,26.90488923]
[1737944142041,26.90488923,236.44,236.22,26.90488923]
[1737944142242,26.90488923,236.4,236.16,26.90488923]
[1737944142442,0.02767576,236.35,236.16,26.90488923]
[1737944142643,2.6411,236.39,236.16,26.90488923]
[1737944143043,4.2348,236.27,236.16,31.14158923]
[1737944143446,2.6411,236.39,236.16,26.90488923]
[1737944143743,0.03147367,236.24,236.19,0.03152089]
[1737944143940,2.6411,236.39,236.16,26.90488923]
[1737944144143,0.03080203,236.24,236.2,26.90488923]
[1737944144446,0.03012082,236.24,236.2,26.93211801]
[1737944145243,0.03012082,236.24,236.22,4.2355]
[1737944145443,2.6411,236.39,236.2,26.93211801]
[1737944145644,2.6411,236.39,236.25,4.2351]
[1737944145843,2.6411,236.39,236.24,26.90488923]
[1737944146446,2.3179,236.43,236.28,26.90488923]
[1737944146636,0.03052395,236.34,236.32,26.90488923]
[1737944146843,4.9886,236.5,236.32,26.90488923]
[1737944147044,4.9886,236.5,236.36,26.90488923]
[1737944147339,4.9886,236.5,236.38,4.2326]
[1737944147644,2.3817,236.51,236.36,26.90488923]
[1737944148044,0.03166705,236.46,236.41,4.26419206]
[1737944148237,0.03166705,236.46,236.4,26.90488923]
[1737944148540,4.9886,236.57,236.45,4.2315]
[1737944148735,4.9886,236.57,236.4,26.90488923]
[1737944148736,2.184,236.59,236.4,26.90488923]
[1737944148939,2.184,236.59,236.44,26.90488923]
[1737944149139,26.90488923,236.64,236.48,4.2309]
[1737944149347,2.3285,236.63,236.48,4.2309]
[1737944149545,2.3285,236.63,236.44,26.90488923]
[1737944149748,0.03088545,236.58,236.53,0.03233408]
[1737944152945,0.00169112,236.58,236.53,0.03233408]
[1737944153145,0.00169112,236.58,236.53,4.26233408]
[1737944153448,0.00169112,236.58,236.53,0.03233408]
[1737944153847,2.3285,236.63,236.53,0.03233408]
[1737944154147,2.3285,236.63,236.6,4.2288]
[1737944154345,5.1126,236.68,236.53,0.03233408]
[1737944154549,5.1126,236.68,236.52,26.90488923]
[1737944155250,5.1126,236.68,236.58,0.02839317]
[1737944155544,4.2276,236.67,236.56,4.2295]
[1737944155750,5.1126,236.68,236.61,0.0297753]
[1737944155950,5.1126,236.68,236.48,26.90488923]
[1737944156151,5.1126,236.68,236.62,0.03195027]
[1737944156349,5.1126,236.68,236.48,26.90488923]
[1737944156549,5.1126,236.68,236.53,4.2299]
[1737944156750,32.01748923,236.68,236.44,56.56408364]
[1737944156946,26.90488923,236.64,236.44,56.56408364]
[1737944157149,32.01748923,236.68,236.44,56.56408364]
[1737944157349,32.01748923,236.68,236.48,26.90488923]
[1737944157553,0.02992491,236.58,236.54,0.02710892]
[1737944157949,4.2283,236.63,236.54,0.02710892]
[1737944158150,0.03114126,236.58,236.54,0.02710892]
[1737944158351,4.2283,236.63,236.54,0.02710892]
[1737944158550,0.0268311,236.61,236.54,0.02710892]
[1737944159952,0.0268311,236.61,236.44,56.56408364]
[1737944160149,26.90488923,236.64,236.44,56.56408364]
[1737944160351,4.2288,236.61,236.44,56.56408364]
[1737944160552,5.1126,236.68,236.48,26.90488923]
[1737944160748,32.01748923,236.68,236.48,26.90488923]
[1737944160955,26.90488923,236.64,236.4,26.90488923]
[1737944161155,26.93381557,236.6,236.4,26.90488923]
[1737944161349,26.90488923,236.6,236.4,26.90488923]
[1737944161553,2.3511,236.59,236.44,26.90488923]
[1737944161848,32.01748923,236.68,236.48,26.90488923]
[1737944162155,2.3511,236.67,236.48,26.90488923]
[1737944162351,0.03164506,236.6,236.56,0.03095441]
[1737944163056,0.03164506,236.6,236.44,26.90488923]
[1737944163253,26.90488923,236.64,236.44,26.90488923]
[1737944163555,4.2299,236.54,236.44,31.13648923]
[1737944163755,2.3511,236.67,236.4,26.90488923]
[1737944163756,26.90488923,236.6,236.4,26.90488923]
[1737944164152,4.2303,236.52,236.42,4.2319]
[1737944164353,4.25940053,236.52,236.48,0.02863109]
[1737944165059,4.2308,236.49,236.48,0.02863109]
[1737944165262,0.02910053,236.52,236.48,0.02863109]
[1737944167963,0.02910053,236.52,236.31,2.443]
[1737944167964,0.02910053,236.52,236.35,26.90488923]
[1737944168160,2.2786,236.56,236.35,26.90488923]
[1737944168860,2.2786,236.56,236.34,4.2333]
[1737944168861,26.90488923,236.49,236.31,26.90488923]
[1737944169058,4.9436,236.48,236.31,26.90488923]
[1737944169363,4.233,236.37,236.28,4.2345]
[1737944169564,4.233,236.37,236.27,26.90488923]
[1737944169864,26.90488923,236.45,236.26,79.16]
[1737944170165,26.90488923,236.41,236.25,168.61914725]
[1737944170358,0.03013706,236.38,236.33,0.03021304]
[1737944170559,4.2335,236.34,236.33,0.03021304]
[1737944170758,0.03013706,236.38,236.25,168.61914725]
[1737944171158,4.2342,236.3,236.25,168.61914725]
[1737944171354,26.90488923,236.41,236.25,168.61914725]
[1737944171666,4.2348,236.27,236.25,168.61914725]
[1737944172264,4.2357,236.22,236.13,168.61914725]
[1737944172460,26.90488923,236.29,236.13,168.61914725]
[1737944172762,4.2361,236.2,236.13,168.61914725]
[1737944172963,26.90488923,236.24,236.13,168.61914725]
[1737944173166,26.90488923,236.2,236.13,143.49908878]
[1737944173366,26.90488923,236.2,236.13,124.67148878]
[1737944173563,4.2374,236.12,236.0,4.2395]
[1737944173761,26.90488923,236.16,235.98,0.0452]
[1737944174064,26.90488923,236.16,236.14,9.087e-05]
[1737944174260,26.90488923,236.24,236.03,26.90488923]
[1737944175266,0.02769777,236.16,236.11,0.02980357]
[1737944175966,4.2372,236.14,236.11,0.02980357]
[1737944176162,0.02769777,236.16,236.11,0.02980357]
[1737944176366,26.932587,236.16,236.11,0.02980357]
[1737944177167,4.2373,236.13,236.11,0.02980357]
[1737944177564,26.932587,236.16,235.98,2.1745]
[1737944177968,26.90488923,236.12,235.98,2.1745]
[1737944178467,26.90488923,236.28,235.99,26.90488923]
[1737944178468,26.90488923,236.21,235.99,26.90488923]
[1737944178867,0.0289783,236.12,236.08,0.03146959]
[1737944179368,26.90488923,236.21,236.08,0.03146959]
[1737944179671,26.90488923,236.17,236.08,0.03146959]
[1737944179966,26.90488923,236.17,235.98,2.1745]
[1737944179967,26.90488923,236.12,235.98,2.1745]
[1737944180969,4.2388,236.05,236.03,0.02968737]
[1737944182172,4.2388,236.05,236.03,8.737e-05]
[1737944182573,26.90488923,236.04,235.88,2.8442]
[1737944182770,26.90488923,236.0,235.82,2.2119]
[1737944183170,4.2418,235.88,235.82,2.2119]
[1737944183372,26.90488923,235.96,235.82,2.2119]
[1737944183674,4.2418,235.88,235.82,2.2119]
[1737944183874,4.2418,235.88,235.87,0.02770301]
[1737944184670,26.90488923,235.88,235.71,2.8442]
[1737944185070,26.90488923,235.88,235.72,2.376]
[1737944185871,0.02823747,235.82,235.78,8.715e-05]
[1737944186178,26.90488923,235.84,235.78,8.715e-05]
[1737944186576,31.14818923,235.8,235.78,8.715e-05]
[1737944186975,26.90488923,235.8,235.64,4.9124]
[1737944187176,26.90488923,235.76,235.64,4.9124]
[1737944187573,26.90488923,235.76,235.64,2.6674]
[1737944187781,4.2458,235.66,235.59,2.2119]
[1737944188280,0.02878537,235.65,235.59,2.2119]
[1737944189080,0.02878537,235.65,235.31,247.95914725]
[1737944189279,26.90488923,235.68,235.45,7.3347]
[1737944189482,0.02847304,235.57,235.48,4.2489]
[1737944189684,26.90488923,235.6,235.45,7.3347]
[1737944189879,26.90488923,235.56,235.45,4.4806]
[1737944190182,4.2479,235.54,235.45,4.4806]
[1737944190383,0.02713608,235.55,235.45,4.4806]
[1737944190889,26.90488923,235.68,235.48,26.90488923]
[1737944191087,26.90488923,235.72,235.48,26.93351129]
[1737944191283,26.90488923,235.76,235.57,26.90488923]
[1737944191483,26.90488923,235.76,235.58,2.2101]
[1737944191683,4.2438,235.77,235.64,4.2459]
[1737944191888,26.90488923,235.8,235.61,26.90488923]
[1737944192083,0.03237516,235.73,235.68,0.03218604]
[1737944192481,26.90488923,235.75,235.59,2.1931]
[1737944192885,4.2447,235.72,235.68,0.03066628]
[1737944193080,0.03091472,235.73,235.68,0.03066628]
[1737944193589,4.245,235.7,235.68,0.03066628]
[1737944193791,4.245,235.7,235.68,6.628e-05]
[1737944194689,4.245,235.7,235.58,2.2101]
[1737944194690,26.90488923,235.71,235.49,2.2092]
[1737944194889,26.90488923,235.63,235.49,2.2092]
[1737944195090,26.90488923,235.59,235.36,26.90488923]
[1737944195783,4.2488,235.49,235.36,26.90488923]
[1737944195984,0.0275952,235.5,235.37,2.6846]
[1737944196189,26.90488923,235.59,235.37,2.6846]
[1737944196391,4.2486,235.5,235.37,2.6846]
[1737944196590,0.03248786,235.46,235.37,2.6846]
[1737944197285,26.90488923,235.67,235.44,26.90488923]
[1737944197488,4.2465,235.62,235.44,26.90488923]
[1737944197789,26.90488923,235.67,235.44,26.90488923]
[1737944198192,4.2466,235.61,235.5,4.2485]
[1737944198392,0.03133318,235.58,235.53,0.02808859]
[1737944199789,0.03133318,235.58,235.54,4.2478]
[1737944200094,0.03133318,235.58,235.53,0.02808859]
[1737944201093,4.2477,235.55,235.53,0.02808859]
[1737944201690,4.2475,235.57,235.53,0.02808859]
[1737944202189,0.03133318,235.58,235.53,0.02808859]
[1737944203096,0.03133318,235.58,235.54,4.2478]
[1737944203297,0.03133318,235.58,235.55,5.2711]
[1737944203796,0.03133318,235.58,235.55,2.8579]
[1737944204195,0.03133318,235.58,235.53,0.02808859]
[1737944204989,0.03133318,235.58,235.54,4.2478]
[1737944205291,0.03133318,235.58,235.53,0.02808859]
[1737944206791,4.2473,235.57,235.53,0.02808859]
[1737944207390,0.03133318,235.58,235.53,0.02808859]
[1737944207593,4.2478,235.54,235.53,0.02808859]
[1737944207791,4.2478,235.54,235.53,8.859e-05]
[1737944208496,4.2499,235.43,235.4,2.1933]
[1737944208691,4.2499,235.43,235.33,2.747]
[1737944208895,4.2499,235.43,235.34,4.2513]
[1737944209198,26.90488923,235.5,235.33,2.747]
[1737944209700,0.02881481,235.44,235.33,2.747]
[1737944210698,0.02881481,235.44,235.33,6.9985]
[1737944210898,0.02881481,235.44,235.33,2.747]
[1737944211199,0.02881481,235.44,235.34,4.2514]
[1737944211397,0.02881481,235.44,235.33,2.747]
[1737944212398,4.25,235.43,235.33,2.747]
[1737944212599,0.02881481,235.44,235.33,2.747]
[1737944212991,0.02881481,235.44,235.35,4.2512]
[1737944213193,26.90488923,235.56,235.34,26.90488923]
[1737944213796,26.90488923,235.6,235.38,26.90488923]
[1737944214303,0.0308249,235.51,235.47,0.03162758]
[1737944214499,26.90488923,235.6,235.47,0.03162758]
[1737944215001,4.2473,235.57,235.47,0.03162758]
[1737944215200,4.2473,235.57,235.47,2.4115]
[1737944215594,4.2473,235.57,235.5,0.03256928]
[1737944215795,0.02675818,235.54,235.5,0.03256928]
[1737944216100,26.90488923,235.68,235.5,0.03256928]
[1737944216303,26.90488923,235.64,235.47,2.4115]
[1737944216601,26.90488923,235.6,235.47,2.4115]
[1737944216899,4.2475,235.57,235.47,2.4115]
[1737944217103,0.02898446,235.56,235.51,0.03014257]
[1737944217500,4.2481,235.53,235.51,0.03014257]
[1737944217701,4.2481,235.53,235.51,4.257e-05]
[1737944218401,0.02898446,235.56,235.51,4.257e-05]
[1737944219201,4.2481,235.53,235.51,4.257e-05]
[1737944220004,4.2482,235.52,235.51,4.257e-05]
[1737944220406,0.02898446,235.56,235.51,4.257e-05]
[1737944220605,26.93387369,235.56,235.51,4.257e-05]
[1737944220903,0.02898446,235.56,235.51,4.257e-05]
[1737944221109,26.90488923,235.65,235.51,4.257e-05]
[1737944221311,4.2461,235.64,235.55,4.2476]
[1737944221506,26.90488923,235.65,235.52,2.7328]
[1737944221806,4.2477,235.55,235.52,2.7328]
[1737944222007,26.90488923,235.61,235.52,2.7328]
[1737944222410,26.90488923,235.57,235.54,0.02807565]
[1737944222609,26.90488923,235.57,235.44,2.7328]
[1737944222811,26.90488923,235.53,235.42,2.4123]
[1737944223205,26.90488923,235.53,235.35,5.1074]
[1737944223706,4.2496,235.45,235.35,5.1074]
[1737944223904,0.02971604,235.46,235.42,0.03126681]
[1737944224713,26.90488923,235.45,235.42,0.03126681]
[1737944225012,4.2498,235.44,235.42,6.681e-05]
[1737944225610,0.02971604,235.46,235.42,6.681e-05]
[1737944226207,26.90488923,235.57,235.42,6.681e-05]
[1737944226711,26.90488923,235.57,235.36,2.1789]
[1737944226712,4.2479,235.54,235.43,4.2497]
[1737944226910,4.2479,235.54,235.36,2.1789]
[1737944227110,26.90488923,235.61,235.37,26.90488923]
[1737944227312,4.2477,235.55,235.45,4.2493]
[1737944227506,0.02978552,235.51,235.47,0.03171133]
[1737944228013,0.02716162,235.51,235.47,0.03231854]
[1737944228405,4.2489,235.48,235.47,0.03231854]
[1737944228818,26.90488923,235.49,235.36,2.1789]
[1737944229012,26.90488923,235.45,235.35,2.7328]
[1737944229217,26.90488923,235.4,235.28,7.2014]
[1737944230013,0.02796775,235.36,235.32,0.02853978]
[1737944230518,0.03042087,235.36,235.32,0.03193896]
[1737944231114,26.90488923,235.48,235.32,0.03193896]
[1737944231415,26.90488923,235.48,235.28,34.10628923]
[1737944231816,31.10488923,235.52,235.28,34.10628923]
[1737944232408,0.02880804,235.42,235.38,0.03189669]
[1737944232717,26.90488923,235.48,235.38,0.03189669]
[1737944232918,0.0322846,235.42,235.38,0.03189669]
[1737944234414,26.90488923,235.52,235.38,0.03189669]
[1737944234918,4.2506,235.39,235.38,0.03189669]
[1737944235116,26.90488923,235.48,235.28,7.2014]
[1737944235614,0.02891034,235.4,235.36,0.03179971]
[1737944237713,0.02891034,235.4,235.37,4.2508]
[1737944237910,0.02891034,235.4,235.36,0.03179971]
[1737944238315,0.02891034,235.4,235.36,4.28269971]
[1737944238710,4.2506,235.39,235.36,0.03179971]
[1737944239013,0.02891034,235.4,235.36,0.03179971]
[1737944240919,4.2509,235.37,235.36,0.03179971]
[1737944241320,0.02891034,235.4,235.36,0.03179971]
[1737944243019,0.02891034,235.4,235.37,4.2507]
[1737944243519,0.02891034,235.4,235.36,0.03179971]
[1737944243720,0.02891034,235.4,235.38,4.2506]
[1737944244222,21.13195411,235.61,235.38,16.64885411]
[1737944244617,4.2484,235.51,235.43,4.2497]
[1737944244824,16.64885411,235.57,235.34,16.64885411]
[1737944245522,0.02995022,235.48,235.43,0.03116665]
[1737944245720,4.27895022,235.48,235.43,0.03116665]
[1737944246216,0.02995022,235.48,235.43,0.03116665]
[1737944247618,21.13195411,235.61,235.43,2.95806665]
[1737944247819,4.2481,235.53,235.43,7.1766]
[1737944248024,21.13195411,235.61,235.43,2.9269]
[1737944248716,0.02984321,235.54,235.5,0.03207257]
[1737944249321,0.02984321,235.54,235.53,4.248]
[1737944249518,0.02984321,235.54,235.5,0.03207257]
[1737944249822,4.27784321,235.54,235.5,0.03207257]
[1737944250021,0.02984321,235.54,235.5,0.03207257]
[1737944250422,4.2481,235.53,235.5,0.03207257]
[1737944251421,4.2484,235.51,235.5,0.03207257]
[1737944251822,16.64885411,235.52,235.35,5.2661]
[1737944252026,16.64885411,235.48,235.35,5.2661]
[1737944252417,4.2496,235.45,235.35,5.2661]
[1737944252622,16.64885411,235.48,235.35,5.2661]
[1737944252918,0.02756582,235.44,235.39,0.02688977]
[1737944256425,16.64885411,235.57,235.39,0.02688977]
[1737944256624,4.5086,235.63,235.5,4.2486]
[1737944256832,16.64885411,235.65,235.46,16.64885411]
[1737944257132,4.2461,235.64,235.52,4.2481]
[1737944257428,4.2,235.68,235.46,16.64885411]
[1737944257630,16.64885411,235.61,235.43,2.3067]
[1737944258136,16.64885411,235.57,235.43,2.3067]
[1737944258433,16.64885411,235.53,235.35,2.897]
[1737944258626,16.64885411,235.53,235.35,5.1704]
[1737944258627,16.64885411,235.49,235.35,5.1704]
[1737944258828,20.89755411,235.49,235.48,3.43e-06]
[1737944259133,16.64885411,235.53,235.35,5.1704]
[1737944259333,4.2499,235.43,235.35,5.1704]
[1737944259932,0.02798272,235.41,235.37,0.02716804]
[1737944260127,16.64885411,235.53,235.37,0.02716804]
[1737944260332,16.64885411,235.53,235.35,5.1704]
[1737944260624,27.03247581,235.54,235.35,5.1704]
[1737944261331,0.02962157,235.47,235.42,0.03121119]
[1737944261531,27.03247581,235.62,235.4,27.03247581]
[1737944262830,4.2484,235.51,235.49,0.02677959]
[1737944263026,27.03247581,235.54,235.35,5.1704]
[1737944263228,4.2494,235.46,235.35,5.1704]
[1737944263430,27.03247581,235.5,235.35,5.1704]
[1737944263737,4.2494,235.46,235.35,9.4216]
[1737944263935,27.03247581,235.5,235.35,5.1704]
[1737944264234,0.02849772,235.43,235.38,0.03259837]
[1737944264535,4.2504,235.4,235.38,0.03259837]
[1737944265332,0.02849772,235.43,235.38,0.03259837]
[1737944266141,27.03247581,235.41,235.24,2.2464]
[1737944266336,27.03247581,235.37,235.24,2.2464]
[1737944266542,27.03247581,235.37,235.21,5.1576]
[1737944266736,4.2521,235.31,235.17,10.29467542]
[1737944266936,27.03247581,235.37,235.18,5.1576]
[1737944267240,0.02747244,235.3,235.26,0.02704258]
[1737944267939,4.2524,235.29,235.26,0.02704258]
[1737944268736,27.03247581,235.29,235.16,397.16825521]
[1737944268937,27.03247581,235.29,235.16,224.82492056]
[1737944269445,27.03247581,235.25,235.16,224.82492056]
[1737944269943,0.0307745,235.23,235.18,0.03152609]
[1737944270142,4.2541,235.2,235.18,0.03152609]
[1737944271240,4.2538,235.22,235.18,0.03152609]
[1737944271846,4.254,235.2,235.18,0.03152609]
[1737944272138,0.0307745,235.23,235.18,0.03152609]
[1737944273937,0.0307745,235.23,235.19,4.2541]
[1737944274140,0.0307745,235.23,235.18,0.03152609]
[1737944274638,27.03247581,235.37,235.18,0.03152609]
[1737944274843,27.03247581,235.33,235.18,0.03152609]
[1737944275040,14.8222,235.39,235.14,2.3479]
[1737944275041,27.03247581,235.29,235.14,2.3479]
[1737944275444,4.2532,235.25,235.14,2.3479]
[1737944275740,0.0314068,235.24,235.19,0.03045018]
[1737944275942,4.2539,235.21,235.19,0.03045018]
[1737944276643,4.2539,235.21,235.09,2.8535]
[1737944276644,4.2547,235.17,235.09,2.8535]
[1737944277038,27.03247581,235.25,235.11,4.2556]
[1737944277441,27.03247581,235.25,235.09,2.8535]
[1737944277643,4.2539,235.21,235.09,2.8535]
[1737944277938,0.0301366,235.19,235.15,0.03048927]
[1737944278344,0.0301366,235.19,235.17,4.2544]
[1737944278643,0.0301366,235.19,235.15,0.03048927]
[1737944279246,4.2843366,235.19,235.15,0.03048927]
[1737944279446,0.0301366,235.19,235.15,0.03048927]
[1737944279841,0.0301366,235.19,235.15,4.28538927]
[1737944280145,0.0301366,235.19,235.15,0.03048927]
[1737944281137,4.2544,235.18,235.15,0.03048927]
[1737944281343,0.0301366,235.19,235.15,0.03048927]
[1737944281746,4.2547,235.16,235.15,0.03048927]
[1737944282340,0.0301366,235.19,235.15,0.03048927]
[1737944283144,16.6720555,235.32,235.15,0.03048927]
[1737944283443,4.2532,235.25,235.18,4.2542]
[1737944283647,16.6720555,235.32,235.1,16.6720555]
[1737944283945,2.1024,235.35,235.1,16.6720555]
[1737944284146,16.6720555,235.32,235.1,16.6720555]
[1737944284343,0.03088699,235.25,235.2,0.02946325]
[1737944285948,16.6720555,235.24,235.09,2.8535]
[1737944286146,4.2551,235.15,235.09,2.8535]
[1737944286343,17.0812555,235.24,235.06,2.4434]
[1737944286647,4.2542,235.19,235.06,6.6999]
[1737944286847,17.0812555,235.24,235.06,2.4434]
[1737944287247,0.0303716,235.17,235.13,0.0314045]
[1737944287751,4.2533,235.24,235.17,4.2544]
[1737944287952,4.2533,235.24,235.13,0.0314045]
[1737944288155,16.6720555,235.32,235.1,16.6720555]
[1737944288543,4.253,235.26,235.16,4.2547]
[1737944288753,16.6720555,235.32,235.1,16.6720555]
[1737944288948,0.03116035,235.23,235.19,0.02955324]
[1737944289251,4.253,235.26,235.19,4.28375324]
[1737944289548,0.02765535,235.23,235.19,4.28375324]
[1737944289751,0.02765535,235.23,235.19,0.02955324]
[1737944291044,4.254,235.2,235.19,0.02955324]
[1737944291744,0.02765535,235.23,235.19,0.02955324]
[1737944292649,12.72,235.19,234.87,10.41513843]
[1737944292852,16.6720555,235.08,234.89,2.8893]
[1737944293047,4.2572,235.02,234.88,8.8049]
[1737944293243,16.6720555,235.12,234.89,2.8893]
[1737944293750,0.03142305,235.03,234.98,0.03157878]
[1737944295347,16.6720555,235.0,234.89,2.8893]
[1737944295553,16.6720555,235.0,234.76,16.6720555]
[1737944295852,16.6720555,235.0,234.78,2.9226]
[1737944296055,16.6720555,235.0,234.79,0.78117061]
[1737944296250,16.6720555,234.96,234.79,0.78117061]
[1737944296549,0.03161644,234.9,234.86,4.2601]
[1737944296753,0.03161644,234.9,234.85,0.02779072]
[1737944296952,16.6720555,235.0,234.78,2.9226]
[1737944297252,0.03130005,234.9,234.85,0.02867316]
[1737944297658,4.2576,235.0,234.9,4.2594]
[1737944297845,2.2761,235.03,234.9,4.2594]
[1737944298046,0.03026355,234.97,234.8,16.6720555]
[1737944298252,2.2761,235.03,234.94,0.02743061]
[1737944298453,16.6720555,235.04,234.81,0.78122329]
[1737944299250,0.02995697,234.95,234.9,0.03091142]
[1737944299756,16.6720555,235.08,234.9,0.03091142]
[1737944299954,16.6720555,235.08,234.85,0.78109982]
[1737944300652,4.2569,235.04,234.85,0.78109982]
[1737944300852,16.6720555,235.08,234.85,0.78109982]
[1737944301053,0.02725873,234.97,234.92,0.03064341]
[1737944301254,4.2571,235.03,234.97,4.2581]
[1737944301656,0.03011693,235.02,234.84,16.6720555]
[1737944301852,4.2577,235.0,234.98,0.02779971]
[1737944302056,16.6720555,235.04,234.8,16.6720555]
[1737944302253,0.02798144,234.95,234.81,0.78113086]
[1737944302557,0.02947918,234.94,234.92,4.259]
[1737944302852,27.14726121,235.03,234.81,27.14726121]
[1737944303153,0.0282523,234.95,234.91,0.03263466]
[1737944304255,0.0282523,234.95,234.91,4.29183466]
[1737944304451,0.0282523,234.95,234.91,0.03263466]
[1737944304959,0.0282523,234.95,234.94,4.2587]
[1737944305161,27.14726121,235.07,234.92,7.4384]
[1737944305656,4.257,235.04,234.92,7.4384]
[1737944305855,27.14726121,235.07,234.92,7.4384]
[1737944306057,27.14726121,235.11,234.92,7.4384]
[1737944306258,0.03223948,235.02,235.0,4.2574]
[1737944306458,27.14726121,235.11,234.92,7.4384]
[1737944306653,0.02738757,235.03,234.99,0.02796068]
[1737944306854,27.14726121,235.15,234.94,0.78080259]
[1737944307051,0.0302745,235.03,234.99,0.02845874]
[1737944307253,4.2555,235.12,235.05,4.2566]
[1737944307459,0.03204286,235.03,234.99,0.02700319]
[1737944307658,27.14726121,235.11,234.92,7.4384]
[1737944307853,4.2576,235.0,234.99,0.03131371]
[1737944308056,4.2576,235.0,234.94,4.2586]
[1737944308362,4.2576,235.0,234.97,0.02988613]
[1737944308757,0.02984839,235.02,234.97,0.02988613]
[1737944310063,4.2577,235.0,234.97,0.02988613]
[1737944310459,4.28724839,235.02,234.97,4.28798613]
[1737944310663,0.02984839,235.02,234.97,0.02988613]
[1737944310867,0.02984839,235.02,235.01,4.2574]
[1737944311157,27.14726121,235.15,234.97,0.02988613]
[1737944311359,27.14726121,235.2,235.01,27.14726121]